[Event "1000GM Schev-G1 March 2024"]
[Site "Santa Clara"]
[Date "2024.03.09"]
[Round "2.2"]
[White "Stearman, Josiah"]
[Black "Arutla, Aditya"]
[Result "1/2-1/2"]
[ECO "B32"]
[WhiteElo "2464"]
[BlackElo "2239"]
[Annotator "TA"]
[PlyCount "190"]
[EventDate "2024.03.06"]
[EventType "schev"]
[EventCountry "USA"]
[SourceTitle "playchess.com"]
[Source "ChessBase"]
[SourceQuality "1"]
[TimeControl "5400+30"]

{[%evp 21,190,21,45,12,22,35,26,31,26,39,24,34,56,46,68,49,50,20,20,10,26,21,25,25,22,8,39,18,6,16,25,-49,-50,-45,0,-42,-39,-61,-60,-74,-7,-92,-34,-35,-37,-37,-37,-61,-60,-61,-79,-69,0,0,0,0,503,0,0,0,0,0,0,0,0,0,0,0,0,0,56,6,6,0,0,0,0,-24,-20,-44,-48,-52,-69,-89,-103,-103,-49,-64,0,0,0,0,0,0,0,-8,-8,-8,-8,-2,0,0,0,0,0,0,0,0,0,-147,-147,-147,-147,-147,-147,-147,-147,-147,-147,-147,-147,-147,-147,-147,-147,-147,-147,-147,-147,-147,-147,-147,-147,-147,-147,-147,-147,-147,-147,-147,-147,-147,-147,-147,-147,-147,-147,-147,-103,-147,-147,-147,-103,-103,-103,-103,-103,-103,-103,-103,-103,-103,-103,-103,-103,-103,-103,-103,-103,-103,-103]} 1. e4 {[%emt 0:00:01]} c5 {[%emt 0:06:13]} 2. Nf3 {[%emt 0:00:14][%cal Bg1f3,Bf3d4,Bd4b5,Bb5a3,Ba3c4][%mdl 32]} Nc6 {[%emt 0:00:08]} 3. d4 {[%emt 0:00:09]} cxd4 {[%emt 0:00:06]} 4. Nxd4 {[%emt 0:00:05]} e5 {[%emt 0:00:06]} 5. Nb5 {[%emt 0:00:11]} d6 {[%emt 0:00:07]} 6. N1c3 {[%emt 0:01:31]} a6 {[%emt 0:00:19]} 7. Na3 {[%emt 0:00:14]} b5 {[%emt 0:01:09]} 8. Nd5 {[%emt 0:00:40]} Nce7 {[%emt 0:00:28]} 9. c4 {[%emt 0:02:59]} Nxd5 {[%emt 0:01:59]} 10. exd5 {[%emt 0:00:35]} bxc4 {[%emt 0:00:49]} 11. Nxc4 {[%emt 0:00:30]} Nf6 {[%emt 0:02:54]} 12. Be3 {[%emt 0:03:00]} Rb8 {[%emt 0:06:04]} 13. Be2 {[%emt 0:03:06]} Be7 {[%emt 0:01:51]} 14. O-O {[%emt 0:01:29] White has an edge.} O-O {[%emt 0:00:22]} 15. a4 {[%emt 0:04:26][%cal Ba2a4,Ba4a5][%mdl 32]} Bb7 {[%emt 0:08:30]} 16. Nb6 {[%emt 0:01:09]} Nd7 {[%emt 0:09:28]} 17. a5 {[%emt 0:06:59]} Nxb6 {[%emt 0:01:56]} 18. Bxb6 {[%emt 0:06:38]} Qd7 {[%emt 0:00:06]} 19. Bc4 {[%emt 0:02:20]} Bd8 {[%emt 0:04:47]} 20. Be3 {[%emt 0:08:09]} f5 {[%emt 0:03:08][%cal Bf7f5,Bf5f4][%mdl 32]} 21. f3 {[%emt 0:04:00]} Bf6 {[%emt 0:01:01]} 22. Qe2 {[%emt 0:04:08]} Ra8 {[%emt 0:03:52]} 23. b4 {[%emt 0:04:23]} Qf7 {[%emt 0:02:07]} 24. Rfd1 {[%emt 0:01:58]} f4 {[%emt 0:02:21]} 25. Bb6 {[%emt 0:02:01]} e4 $1 {[%emt 0:00:58]} 26. fxe4 {[%emt 0:06:19]} ({Better is} 26. Rac1 $11 exf3 (26... e3 27. b5 $14) 27. Qxf3) 26... Bxa1 $15 {[%emt 0:00:49]} 27. Rxa1 {[%emt 0:00:02]} Rae8 {[%emt 0:08:48][%cal Ob7d5]} 28. Qf3 {[%emt 0:04:37]} Rc8 {[%emt 0:04:32]} 29. Be2 {[%emt 0:04:40]} Qf6 $1 {[%emt 0:00:30] Prevents Bd4.} 30. Rd1 {[%emt 0:00:58]} Qb2 {[%emt 0:02:46]} (30... Rc3 $1 $17 {[%cal Rc3f3]} 31. Qh5 (31. Bd4 $2 Rxf3 32. Bxf6 Re3 $19) 31... Rc2) 31. Qf1 {[%emt 0:07:05]} (31. b5 $11 axb5 32. Bd4) 31... Qxb4 {[%emt 0:01:01]} (31... Rc2 $1 $17 {[%cal Rc2e2]} 32. Rb1 Qc3) 32. e5 $1 {[%emt 0:01:41]} Rc2 {[%emt 0:18:11]} 33. e6 {[%emt 0:02:23][%cal Oe6e7]} Rd2 {[%emt 0:00:40] Hoping for ...Rxd1.} 34. Bf3 {[%emt 0:02:01]} Rxd1 {[%emt 0:00:52]} 35. Qxd1 {[%emt 0:00:15]} Rf5 $1 {[%emt 0:02:50]} 36. h3 {[%emt 0:06:45]} Qc4 {[%emt 0:01:49] Against Qc1} (36... Re5 $15 37. Bf2 Qxa5) 37. Qe1 $11 {[%emt 0:01:30] e7 would kill now.} Qc8 {[%emt 0:01:51]} (37... Bxd5 $2 38. Bxd5 (38. e7 Bf7 $18) 38... Qxd5 39. e7 $18) (37... Re5 $5 38. Qh4 $8 h6 (38... Qc1+ $2 39. Kh2 $18) (38... g5 $2 39. Qh5 $18) 39. Qd8+ Kh7 40. Qxd6 (40. e7 Re1+ 41. Kh2 Qf1) 40... Rxd5 $11) 38. Qe4 $36 {[%emt 0:07:17][%mdl 2048] White is more active.} g6 {[%emt 0:00:59][%mdl 8192] [#]} (38... Rxd5 $2 39. Kh2 $18) (38... Qc1+ $11 {and Black is okay.} 39. Kh2 Re5 40. Qxe5 dxe5) 39. e7 $2 {[%emt 0:01:31]} ({Only move:} 39. Qa4 $1 $18) 39... Re5 $1 {[%emt 0:02:12]} 40. Qxf4 {[%emt 0:00:21]} Rxe7 {[%emt 0:00:08]} 41. Qxd6 {[%emt 0:01:29]} Qd7 {[%emt 0:00:33]} 42. Qb8+ {[%emt 0:01:02]} Re8 {[%emt 0:00:07]} 43. Qc7 {[%emt 0:00:36]} Qxc7 {[%emt 0:00:35]} 44. Bxc7 {[%emt 0:00:01][%mdl 4096] Endgame. KRB-KB} Bc8 {[%emt 0:00:31]} 45. d6 {[%emt 0:00:22]} Bd7 {[%emt 0:00:59]} (45... Kf7 $11) 46. Bd5+ {[%emt 0:01:05]} ({White should try} 46. Bb7 $1 $14) 46... Kf8 {[%emt 0:00:30]} 47. Kf2 {[%emt 0:00:17]} Bb5 {[%emt 0:00:25]} 48. Kf3 {[%emt 0:00:20]} Re1 {[%emt 0:00:24]} 49. Bc4 {[%emt 0:00:52] Bxb5 would now be deadly.} Ke8 {[%emt 0:00:55]} 50. Bg8 {[%emt 0:00:26]} (50. Bxb5+ axb5 51. Kf2 Rc1 $19) 50... h6 {[%emt 0:00:25]} 51. g3 {[%emt 0:00:36]} Kd7 {[%emt 0:00:09]} 52. Bh7 {[%emt 0:00:14]} Bd3 {[%emt 0:00:28]} 53. Bg8 {[%emt 0:00:34]} Re8 {[%emt 0:01:00]} (53... g5 $17 54. Bb3 Re4 (54... Be4+ 55. Kg4 $15)) 54. Bb3 $1 $15 {[%emt 0:00:08]} Be4+ {[%emt 0:00:32]} (54... g5 $15) 55. Kf4 $11 {[%emt 0:00:35]} g5+ {[%emt 0:00:44]} 56. Kg4 {[%emt 0:00:13]} Rf8 {[%emt 0:00:02][%csl Gf8][%cal Re4f3]} 57. Kh5 {[%emt 0:01:50]} Rf6 {[%emt 0:00:35]} 58. g4 {[%emt 0:00:00]} Bc6 {[%emt 0:00:40] Threatens to win with ...Kc8.} 59. h4 $1 {[%emt 0:00:24]} gxh4 {[%emt 0:00:58]} 60. Kxh4 {[%emt 0:01:06]} Rf1 {[%emt 0:00:10]} (60... Rf4 {simplifies} 61. Be6+ Kxe6 62. d7 Rxg4+ 63. Kxg4 Bxd7 64. Kh5 Kf6) 61. Bc2 {[%emt 0:00:00]} Rh1+ {[%emt 0:00:47]} 62. Kg3 {[%emt 0:00:00]} Rg1+ {[%emt 0:00:10]} 63. Kf4 {[%emt 0:00:00]} Kc8 {[%emt 0:00:30]} 64. Bf5+ {[%emt 0:01:25]} Bd7 {[%emt 0:00:04] aiming for ...Rf1+.} 65. Bxd7+ {[%emt 0:00:15]} (65. Bd3 $1 $11 Rxg4+ (65... Bxg4 66. Bxa6+ Kd7 67. Bb5+ Kc8 68. Bb6 $14) 66. Kf3) 65... Kxd7 {[%emt 0:00:01] KR-KB} 66. Kf5 {[%emt 0:00:01]} Rh1 {[%emt 0:01:10]} 67. Kf4 {[%emt 0:01:02]} Ke6 {[%emt 0:00:06]} 68. Kg3 {[%emt 0:00:32]} Rd1 {[%emt 0:00:14]} 69. Kf4 {[%emt 0:00:28]} Rd4+ {[%emt 0:00:15]} 70. Kf3 {[%emt 0:00:12]} Rd3+ {[%emt 0:00:57]} 71. Ke4 {[%emt 0:00:19]} Rd5 {[%emt 0:00:31]} 72. Kf4 {[%emt 0:00:14]} Kd7 {[%emt 0:00:25]} 73. Ke4 {[%emt 0:00:18]} Kc6 {[%emt 0:00:04]} 74. Kf4 {[%emt 0:00:14]} Rg5 {[%emt 0:00:41]} ({Don't play} 74... Kd7 75. Kf3) 75. Kf3 {[%emt 0:00:54]} Rg7 {[%emt 0:00:06]} 76. Kf4 {[%emt 0:00:13]} Kd5 {[%emt 0:00:06]} 77. Kf5 {[%emt 0:00:29] [#]} Rg5+ $1 {[%emt 0:00:16]} 78. Kf4 {[%emt 0:00:31] Strongly threatening d7.} Ke6 {[%emt 0:00:09]} 79. Kf3 {[%emt 0:00:55]} Rb5 {[%emt 0:00:17]} 80. Kf4 {[%emt 0:00:08]} Rb4+ {[%emt 0:00:12]} 81. Kf3 {[%emt 0:00:08]} Rd4 {[%emt 0:00:12]} 82. Kg3 {[%emt 0:00:29]} Kd7 {[%emt 0:00:45]} 83. Kf3 {[%emt 0:00:15]} Kc6 {[%emt 0:00:09]} 84. Kg3 {[%emt 0:00:10]} Kb5 {[%emt 0:00:25]} 85. Kh4 {[%emt 0:00:25]} Rd5 {[%emt 0:00:12]} 86. Kg3 {[%emt 0:00:07]} Kc4 {[%emt 0:00:17]} 87. Kf4 {[%emt 0:01:34] Black is better.} Kd3 {[%emt 0:00:12]} 88. Kf3 {[%emt 0:00:19]} Rd4 {[%emt 0:00:10]} 89. Bb8 {[%emt 0:00:25]} Kc4 {[%emt 0:02:34]} 90. Bc7 {[%emt 0:00:19]} Kb4 {[%emt 0:00:57]} 91. Ke3 {[%emt 0:01:47]} Kc3 {[%emt 0:00:36]} (91... Rxg4 92. d7 Rg8 93. d8=Q $18 (93. d8=R Rg6 $18)) 92. Kf3 {[%emt 0:00:27]} Kd2 {[%emt 0:00:32]} 93. Bb8 {[%emt 0:00:16]} Kd3 {[%emt 0:00:17]} 94. Bc7 {[%emt 0:00:09]} Rd5 {[%emt 0:00:14]} 95. Kf4 {[%emt 0:00:05]} Kd4 {[%emt 0:03:58] What a bad dream for White.   Weighted Error Value: White=0.28 (precise) /Black=0.23 (precise) .  Loses game:     	---       	Black=1      Missed win:     	White=1     	---        Mistake:       	White=4     	Black=6      Inaccurate:     	White=3     	Black=2      OK:         	White=33    	Black=35     Best:        	White=7     	Black=4      Strong:       	White=3     	Black=5} 1/2-1/2

[Event "1000GM Schev-G1 March 2024"]
[Site "Santa Clara"]
[Date "2024.03.10"]
[Round "2.2"]
[White "Stearman, Josiah"]
[Black "Arutla, Aditya"]
[Result "1-0"]
[ECO "D30"]
[WhiteElo "2464"]
[BlackElo "2239"]
[Annotator "TA"]
[PlyCount "71"]
[EventDate "2024.03.06"]
[EventType "schev"]
[EventCountry "USA"]
[SourceTitle "playchess.com"]
[Source "ChessBase"]
[SourceQuality "1"]
[TimeControl "5400+30"]

{[%evp 9,71,15,37,30,39,29,31,36,41,0,6,0,0,-1,16,14,15,12,8,18,68,73,69,87,97,62,80,83,300,293,307,308,304,306,345,312,303,296,286,220,414,429,411,406,437,445,433,437,470,456,456,468,443,439,811,411,599,589,532,335,29994,29995,29995,29996]} 1. c4 c6 2. d4 d5 3. Nf3 Nf6 4. e3 e6 5. b3 Ne4 6. Nbd2 {[%emt 0:03:00]} Bd6 {[%emt 0:03:00]} 7. Nxe4 {[%emt 0:00:30]} dxe4 {[%emt 0:00:30]} 8. Nd2 {[%emt 0:00:30] White is slightly better.} f5 {[%emt 0:00:30]} 9. Bb2 {[%emt 0:00:30]} O-O {[%emt 0:00:30]} 10. f4 {[%emt 0:00:30]} c5 {[%emt 0:00:30] ...cxd4 is the strong threat.} 11. d5 {[%emt 0:00:30]} Nd7 {[%emt 0:00:30]} 12. dxe6 {[%emt 0:00:30]} Nf6 {[%emt 0:00:30]} 13. Be2 {[%emt 0:00:30]} (13. Qc2 {looks sharper.} Ng4 14. Qc3 Qe7 15. Be2) 13... Bxe6 {[%emt 0:00:30]} 14. Qc2 {[%emt 0:00:30]} Qe7 {[%emt 0:00:30]} (14... Ng4 $11 15. Qc3 Qe7) 15. O-O-O $14 {[%emt 0:00:30]} Rad8 {[%emt 0:00:30]} 16. h3 {[%emt 0:00:30]} Bc7 {[%emt 0:00:30]} 17. Bc3 {[%emt 0:00:30][%cal Og2g4]} a6 {[%emt 0:00:30][%cal Ob7b5]} 18. g4 {[%emt 0:00:30]} fxg4 $2 {[%emt 0:00:30] Black cannot hold the game after this.} (18... b5 $16) 19. hxg4 $18 {[%emt 0:00:30]} (19. Nxe4 Rxd1+ (19... gxh3 20. Nxf6+ gxf6 21. Bf1 $14) 20. Rxd1 gxh3 21. Nxf6+ gxf6 $11) 19... Nxg4 {[%emt 0:00:30]} 20. Bxg4 {[%emt 0:00:30]} (20. Nxe4 $2 Rxd1+ (20... Nxe3 $2 21. Nf6+ gxf6 22. Rdg1+ $19) 21. Qxd1 Nxe3 $19) (20. Qxe4 $6 Nf6 21. Qc2 (21. Qxb7 Bf5 $11) (21. Bxf6 Qxf6 22. Qxh7+ Kf7 $16) 21... Bc8 $16) 20... Bxg4 {[%emt 0:00:30]} 21. Rdg1 {[%emt 0:00:30]} h5 {[%emt 0:00:30]} 22. Nxe4 {[%emt 0:00:30][%cal Og1g4] And now Rxg4! would win.} Bxf4 {[%emt 0:00:30]} 23. exf4 {[%emt 0:00:30]} Rxf4 {[%emt 0:00:30]} 24. Re1 {[%emt 0:00:30][%cal Oe4f6,Bg1e1,Be1e8,Be8b8][%mdl 32] Hoping for Nf6+!} Qf7 {[%emt 0:00:30]} (24... Qf8 25. Ng5 Bf5) 25. Be5 {[%emt 0:00:30]} (25. Nxc5 $2 Rf2 26. Qe4 Bf5 (26... Rxa2 $2 27. Rhf1 $18) 27. Qxb7 Rc2+ (27... Rxa2 $2 28. Qxf7+ Kxf7 29. Bb2 $18) 28. Kb1 Rxc3+ 29. Kb2 Qf6 $19) 25... Rf5 {[%emt 0:00:30]} 26. Nd6 {[%emt 0:00:30]} (26. Nxc5 $2 Rxe5 27. Re4 Qf3 $19 (27... Rxc5 $2 28. Rxg4 hxg4 29. Qh7+ Kf8 30. Qh8+ Qg8 31. Rf1+ Ke7 32. Qh4+ Kd7 33. Qxg4+ Kc6 34. Kb2 $19)) 26... Rxd6 {[%emt 0:00:30]} 27. Bxd6 {[%emt 0:00:30]} Qf6 {[%emt 0:00:30] [#]} 28. Re8+ $1 {[%emt 0:00:30]} Kh7 {[%emt 0:00:30]} 29. Be5 {[%emt 0:00:30]} (29. Bxc5 Qa1+ 30. Qb1 Qc3+ 31. Qc2 Qa1+ 32. Qb1 Qc3+ 33. Qc2 Qa1+ $11) 29... Qg6 {[%emt 0:00:30]} 30. Rb8 {[%emt 0:00:30]} Bf3 {[%emt 0:00:30]} (30... Rxe5 31. Rh8+ (31. Rxb7 $2 Qxc2+ 32. Kxc2 Bf3 $19) 31... Kxh8 32. Qxg6) 31. Re1 {[%emt 0:00:30] Strongly threatening Qd3.} h4 {[%emt 0:00:30]} (31... Rg5 $142 32. Qxg6+ Rxg6) 32. Kb2 {[%emt 0:00:30][%cal Oe1g1] Rg1! would now be deadly.} h3 {[%emt 0:00:30] [#]} (32... Qg2 $142 33. Qxg2 Bxg2) 33. Rg1 $3 {[%emt 0:00:30][%cal Oc2f5][%mdl 512] Qxf5! would kill now.} Bg2 {[%emt 0:00:30]} 34. Rd1 {[%emt 0:00:30][%cal Od1d7] Intending Rd7! and mate.} Qg4 $2 {[%emt 0:00:30]} (34... Rxe5 35. Rh8+ Kxh8 36. Qxg6) (34... Be4 $18 35. Qh2 (35. Qxe4 $2 {perishes.} Rf2+ 36. Ka3 Qxe4 $19) 35... Qg2+ 36. Rd2 Qxh2 37. Bxh2 Kg6) 35. Rd7 {[%emt 0:00:30]} Be4 {[%emt 0:00:30] [#]} 36. Qxe4 $3 {[%emt 0:00:30][%mdl 512] Weighted Error Value: White=0.42/Black=0.48.  Loses game:     	---       	Black=1      Mistake:       	---       	Black=5      Inaccurate:     	White=4     	---        OK:         	White=11    	Black=10     Best:        	White=3     	Black=3      Strong:       	White=1     	---} 1-0

[Event "1000GM Schev-G1 March 2024"]
[Site "Santa Clara"]
[Date "2024.03.10"]
[Round "2.3"]
[White "Griffith, Kyron"]
[Black "Atwell, Rose"]
[Result "1/2-1/2"]
[ECO "C42"]
[WhiteElo "2352"]
[BlackElo "2285"]
[Annotator "TA"]
[PlyCount "67"]
[EventDate "2024.03.06"]
[EventType "schev"]
[EventCountry "USA"]
[SourceTitle "playchess.com"]
[Source "ChessBase"]
[SourceQuality "1"]
[TimeControl "5400+30"]

{[%evp 21,67,18,18,22,27,20,30,29,19,12,16,0,0,0,0,0,0,0,0,-4,0,0,-8,-36,-32,-42,-33,-45,-44,-35,-45,-38,-33,-37,-29,-117,-29,-47,-4,-12,0,0,0,0,0,0,0,0]} 1. e4 {[%emt 0:07:28]} e5 {[%emt 0:00:04]} 2. Nf3 {[%emt 0:00:09]} Nf6 {[%emt 0:00:07]} 3. Nxe5 {[%emt 0:00:20]} d6 {[%emt 0:00:06]} 4. Nf3 {[%emt 0:00:05]} Nxe4 {[%emt 1:32:13]} 5. d4 {[%emt 0:00:08]} d5 {[%emt 0:00:00]} 6. Bd3 {[%emt 0:00:06]} Bd6 {[%emt 0:00:00]} 7. O-O {[%emt 0:00:18]} O-O {[%emt 0:00:00]} 8. c4 {[%emt 0:00:23]} c6 {[%emt 0:00:00]} 9. Nc3 {[%emt 0:00:13]} Nxc3 {[%emt 0:00:00]} 10. bxc3 {[%emt 0:00:05]} dxc4 {[%emt 0:00:00]} 11. Bxc4 {[%emt 0:00:04]} Bf5 {[%emt 0:00:00]} 12. Bg5 {[%emt 0:00:40]} Qa5 {[%emt 0:00:00]} 13. d5 {[%emt 0:02:14] [#] Droht dxc6 und aus.} Qc7 {[%emt 0:00:00]} 14. Re1 {[%emt 0:03:26] Weiß hat minimalen Vorteil.} h6 {[%emt 0:00:00]} 15. Bh4 {[%emt 0:05:13]} c5 {[%emt 0:00:00]} 16. Bd3 {[%emt 0:03:46]} Bxd3 {[%emt 0:00:00]} 17. Qxd3 {[%emt 0:00:02]} c4 {[%emt 0:00:00]} 18. Qe4 {[%emt 0:04:56]} Nd7 {[%emt 0:00:00]} 19. Be7 {[%emt 0:06:11]} Bxe7 {[%emt 0:00:00]} 20. Qxe7 {[%emt 0:00:22]} Rad8 {[%emt 0:00:00]} 21. Ne5 {[%emt 0:07:14]} Qc8 {[%emt 0:00:00]} 22. Nxd7 {[%emt 0:37:57]} Rxd7 {[%emt 0:00:00]} 23. Qe5 {[%emt 0:02:33]} Qc5 {[%emt 0:00:00][%cal Of8d8]} 24. Rad1 {[%emt 0:00:21]} Rfd8 {[%emt 0:00:00][%cal Rd7d5,Bf8d8,Bd8d5,Bd5d3,Bd3c3,Bc3c1,Bc1a1][%mdl 32]} 25. g3 {[%emt 0:00:24]} Rxd5 {[%emt 0:00:00]} 26. Rxd5 {[%emt 0:00:05]} Qxd5 {[%emt 0:00:00]} 27. Qxd5 {[%emt 0:00:30]} Rxd5 $15 {[%emt 0:00:00][%mdl 4096] Endspiel. KR-KR} 28. Re8+ {[%emt 0:00:06]} Kh7 {[%emt 0:00:00] Droht stark ...Ra5.} 29. Re7 {[%emt 0:00:04][%csl LRb7,LRf7]} Kg6 {[%emt 0:00:00]} 30. Rxb7 {[%emt 0:00:04] Die Stellung ist ausgeglichen.} Rd3 {[%emt 0:00:00]} 31. Rxa7 {[%emt 0:00:12]} Rxc3 {[%emt 0:00:00]} 32. Rc7 {[%emt 0:00:10]} Rc1+ {[%emt 0:00:00]} 33. Kg2 {[%emt 0:00:04]} Ra1 {[%emt 0:00:00]} 34. Rxc4 {[%emt 0:00:05] Gewichteter Fehlerwert: Weiß=0.03 (makellos) /Schwarz=0.04 (makellos) .  Ungenau:       	Weiß=1     	Schwarz=2     OK:         	Weiß=11    	Schwarz=12    Bester:       	Weiß=2     	---} 1/2-1/2

[Event "1000GM Schev-G1 March 2024"]
[Site "Santa Clara"]
[Date "2024.03.10"]
[Round "2.4"]
[White "Guo, Ethan"]
[Black "Arenas, David"]
[Result "0-1"]
[ECO "C84"]
[WhiteElo "2227"]
[BlackElo "2368"]
[Annotator "TA"]
[PlyCount "86"]
[EventDate "2024.03.06"]
[EventType "schev"]
[EventCountry "USA"]
[SourceTitle "playchess.com"]
[Source "ChessBase"]
[SourceQuality "1"]
[TimeControl "5400+30"]

{[%evp 13,86,14,28,15,22,9,11,0,4,14,17,-26,-29,-54,-57,-53,-56,-44,-43,-54,-51,-99,-93,-97,-10,-17,0,0,0,-120,-120,-120,-120,-120,-120,-120,-120,-120,-120,-118,-59,-55,-52,-117,-112,-1412,-1442,-1377,-1287,-1187,-1210,-1413,-1389,-6195,-5202,-29972,-29973,-29974,-29974,-29974,-29975,-29973,-29976,-29976,-29977,-29977,-29978,-29978,-29979,-29979,-29979,-29977,-29978,-29978,-29979]} 1. e4 e5 2. Nf3 Nc6 3. Bb5 a6 4. Ba4 Nf6 5. d3 b5 6. Bb3 Be7 7. O-O Bb7 8. a3 O-O 9. Nc3 Nd4 10. Nxd4 {Die Stellung ist ausgeglichen.} exd4 11. Ne2 c5 12. Nf4 Qc7 13. Nd5 Nxd5 14. Bxd5 Bxd5 15. exd5 Bd6 16. h4 Rae8 17. Qg4 (17. Qf3 $15) 17... f5 18. Qf3 Qd8 {Schwarz steht aktiver.} ({Vorzuziehen ist} 18... f4 $17 19. Bd2 Qd8) 19. Bf4 $11 Qe7 20. a4 {[%emt 0:10:00]} b4 $40 {[%emt 0:10:00][%mdl 128] Schwarz greift an.} 21. b3 {[%emt 0:00:30]} (21. Rae1 $11 {hält das Gleichgewicht.} Qf6 (21... Qxh4 $2 {zu gefräßig.} 22. Bxd6 Qf6 23. Bxc5 $18) (21... Qxe1 22. Rxe1 Rxe1+ 23. Kh2 $14) 22. Rxe8 Rxe8 23. Bxd6 Qxd6 24. Qxf5) 21... Bxf4 $17 {[%emt 0:00:30]} 22. Qxf4 {[%emt 0:00:30][%cal Of1e1]} Qe5 {[%emt 0:00:30]} 23. Qxe5 {[%emt 0:00:30]} Rxe5 {[%emt 0:00:30][%mdl 4096] Endspiel. KRR-KRR} 24. Rfe1 {[%emt 0:00:30] [#]} Rfe8 {[%emt 0:00:30]} ({Doch nicht} 24... Rxd5 $6 25. Re7 $11) 25. Kf1 {[%emt 0:00:30]} Kf7 {[%emt 0:00:30]} 26. f4 {[%emt 0:00:30] [#]} Re3 {[%emt 0:00:30]} (26... Rxe1+ $1 $17 27. Rxe1 Rxe1+ 28. Kxe1 Ke7) 27. Rxe3 $15 {[%emt 0:00:30]} Rxe3 {[%emt 0:00:30] KR-KR} 28. Re1 {[%emt 0:00:30]} ({Besser ist} 28. h5 $1 $15) 28... Ke7 {[%emt 0:00:30]} 29. Rxe3+ $4 {[%emt 0:00:30][%mdl 8192] Der Zug kostet die Partie für Weiß.} (29. h5 $17) 29... dxe3 $17 {[%emt 0:00:30] KP-KP} 30. Ke2 {[%emt 0:00:30]} Kd6 {[%emt 0:00:30]} 31. Kxe3 {[%emt 0:00:30]} Kxd5 {[%emt 0:00:30]} 32. h5 {[%emt 0:00:30]} a5 {[%emt 0:00:30]} 33. g3 {[%emt 0:00:30]} h6 {[%emt 0:00:30]} 34. Kd2 {[%emt 0:00:30]} Kd4 {[%emt 0:00:30] Schwarz setzt Matt.} 35. Ke2 {[%emt 0:00:30]} Kc3 {[%emt 0:00:30]} 36. Kd1 {[%emt 0:00:30]} d6 {[%emt 0:00:30]} 37. Kc1 {[%emt 0:00:30]} d5 {[%emt 0:00:30]} 38. Kd1 {[%emt 0:00:30]} c4 {[%emt 0:00:30]} 39. dxc4 {[%emt 0:00:30]} dxc4 {[%emt 0:00:30]} 40. bxc4 {[%emt 0:00:30]} Kxc4 {[%emt 0:00:30]} 41. Kd2 {[%emt 0:00:30]} Kd4 {[%emt 0:00:30]} 42. Ke2 {[%emt 0:00:30]} Kc3 {[%emt 0:00:30]} 43. Kd1 {[%emt 0:00:30]} b3 {[%emt 0:00:30] Gewichteter Fehlerwert: Weiß=0.77/Schwarz=0.10 (sehr präzise) .  Verlustzug:     	Weiß=1     	---        Fehler:       	Weiß=3     	Schwarz=2     Ungenau:       	Weiß=1     	---        OK:         	Weiß=3     	Schwarz=8     Bester:       	Weiß=2     	Schwarz=1} 0-1